Cogmind - Beta 13 @@@ ROGUE MODE // 2024.04.09 @ 20:18:38 Player: DURANDAL Result: Destroyed by VF-8C6(R) with Subdweller Machine Gun Performance ------------- Evolutions (0) 0 Regions Visited (3) 600 Robots Destroyed (18) 90 Value Destroyed (429) 429 Prototype IDs (0) 0 Alien Tech Used (0) 0 Bonus (0) 0 TOTAL SCORE: 1119 Bonus ------- None Cogmind --------- Core Integrity 0/250 Matter 300/300 Energy 246/250 System Corruption 0% Temperature Cool (2) Movement Walking (190) Ox1 Location -10/Subcaves Parts ------- > --- POWER (1) -------- Ion Engine > --- PROPULSION (2) --- Aluminum Leg Aluminum Leg > --- UTILITY (2) ------ Large Storage Unit Targeting Computer > --- WEAPON (2) ------- (None) > --- INVENTORY (15) --- Ion Engine Light Treads Large Storage Unit High-capacity Storage Unit Propulsion Shielding Grenade Launcher Rocket Launcher Mining Laser Peak State ------------ > --- POWER ------------ Light Nuclear Core > --- PROPULSION ------- Light Treads Light Treads > --- UTILITY ---------- Large Storage Unit Targeting Computer > --- WEAPON ----------- EM Pulse Gun EM Pulse Gun > --- INVENTORY -------- Ion Engine Ion Engine Aluminum Leg Aluminum Leg Large Storage Unit Small Laser Particle Gun Grenade Launcher Mining Laser [Rating: 10] Favorites ----------- Power Ion Engine Engine Ion Engine Power Core Light Nuclear Core Propulsion Light Treads Treads Light Treads Leg Aluminum Leg Utility Targeting Computer Storage Large Storage Unit Processor Targeting Computer Weapon EM Pulse Gun Energy Gun EM Pulse Gun Ballistic Gun Light Assault Rifle Build | -11 -10 -10 -10 ------- Run | Yrd Mat Min Sub Slots Evolved . | . . . . Power . | . . . . Propulsion . | . . . . Utility . | . . . . Weapon . | . . . . Parts Attached 20 | 6 10 4 . Power 3 | 1 1 1 . Engine 2 | 1 . 1 . Core 1 | . 1 . . Reactor . | . . . . Propulsion 8 | 2 4 2 . Treads 4 | 2 2 . . Leg 4 | . 2 2 . Wheel . | . . . . Hover . | . . . . Flight . | . . . . Utility 3 | 1 2 . . Device . | . . . . Storage 2 | 1 1 . . Processor 1 | . 1 . . Hackware . | . . . . Protection . | . . . . Artifact . | . . . . Weapon 6 | 2 3 1 . Energy Gun 4 | 1 2 1 . Energy Cannon . | . . . . Ballistic Gun 2 | 1 1 . . Ballistic Cannon . | . . . . Launcher . | . . . . Special Weapon . | . . . . Impact Weapon . | . . . . Slashing Weapon . | . . . . Piercing Weapon . | . . . . Special Melee Weapon . | . . . . Unidentified Prototypes . | . . . . Parts Lost 8 | . 3 4 1 Power 1 | . . 1 . Propulsion 2 | . 1 1 . Utility . | . . . . Weapon 5 | . 2 2 1 Highest Loss Streak 3 | . 2 3 1 To Critical Strikes 1 | . . 1 . Average Slot Usage (%) 93 | . 96 94 82 Engine 8 | . 9 5 14 Core 5 | . 4 7 . Treads 18 | . 26 15 . Leg 8 | . . 11 28 Storage 14 | . 14 14 14 Processor 13 | . 12 14 14 Energy Gun 18 | . 14 23 11 Ballistic Gun 4 | . 11 . . Naked Turns . | . . . . Heaviest Build 29 | 13 29 29 26 Greatest Support 40 | 40 40 40 20 Greatest Overweight (x) 1 | . . 1 1 Average Overweight (x) . | . . . 1 Largest Inventory Capacity 15 | 8 15 15 15 Average Capacity 12 | 7 9 15 15 Most Carried 12 | 4 9 12 8 Average Carried 6 | 1 5 8 8 Final Capacity 15 | 8 15 15 15 Final Carried 8 | 2 7 8 8 Class Distribution -------------------- 100% | Mutant Dominant Class ---------------- Mutant | -10/Materials Mutant | -10/Mines Mutant | -10/Subcaves Resources | -11 -10 -10 -10 ----------- Run | Yrd Mat Min Sub Matter Collected 459 | 190 229 40 . Remotely . | . . . . Salvage Created 635 | . 374 261 . Parts 37 | . 20 17 . Haulers Intercepted 2 | . 2 . . Recyclers Shooed . | . . . . Parts Field Recycled . | . . . . Retrieved Matter . | . . . . Parts Self-Destructed 5 | . . . 5 Prevented . | . . . . Kills | -11 -10 -10 -10 ------- Run | Yrd Mat Min Sub Combat Hostiles Destroyed 15 | . 8 7 . Guns 14 | . 8 6 . AOE 1 | . . 1 . Classes Destroyed 4 | . 3 1 . Tunneler 1 | . . 1 . Hauler 2 | . 2 . . Swarmer 6 | . 3 3 . Grunt 9 | . 5 4 . Best Kill Streak 3 | . 3 2 . Combat Bots Only 3 | . 3 2 . Max Kills in Single Turn 1 | . 1 1 . Gunslinging . | . . . . Exploded 1 | . . 1 . Melee . | . . . . Uniques/NPCs Destroyed . | . . . . Combat | -11 -10 -10 -10 -------- Run | Yrd Mat Min Sub Hostile Shots Fired 121 | . 68 40 13 Missed 29 | . 13 10 6 Damage Taken 1136 | . 574 410 152 Core 266 | . 93 92 81 Absorbed by Shields . | . . . . Core Remaining (%) 100 | 100 . . . Volleys Fired 77 | . 50 27 . Largest 2 | . 2 2 . Hottest 80 | . 60 80 . Shots Fired 131 | . 86 45 . Gun 131 | . 86 45 . Cannon . | . . . . Launcher . | . . . . Special . | . . . . Kinetic 64 | . 64 . . Thermal 13 | . . 13 . Explosive . | . . . . Electromagnetic 54 | . 22 32 . Robot Hit Streak 11 | . 11 11 . Robot Miss Streak 3 | . 3 2 . Penetration Max . | . . . . Secondary Targets . | . . . . Shots Hit Robots 97 | . 62 35 . Core Hits 34 | . 22 12 . Critical Kills . | . . . . Critical Parts Destroyed . | . . . . Critical Strikes 4 | . 1 3 . Corrupt 4 | . 1 3 . Melee Attacks . | . . . . Impact . | . . . . Slashing . | . . . . Piercing . | . . . . Sneak Attacks . | . . . . Combat Hostiles . | . . . . Follow-up Attacks . | . . . . Damage Inflicted 1100 | . 622 478 . Guns 987 | . 571 416 . Cannons . | . . . . Explosions 89 | . 51 38 . Melee . | . . . . Ramming 24 | . . 24 . Kinetic 337 | . 337 . . Thermal 222 | . 51 171 . Explosive . | . . . . Electromagnetic 517 | . 234 283 . Impact . | . . . . Slashing . | . . . . Piercing . | . . . . Highest Corruption . | . . . . Average Corruption . | . . . . Corruption Purged . | . . . . Corruption Blocked . | . . . . Overload Shots . | . . . . Overflow Damage . | . . . . Projectiles . | . . . . Explosions . | . . . . Melee . | . . . . Knockbacks . | . . . . Impact . | . . . . Kinetic . | . . . . Secondary . | . . . . Self-Inflicted Damage 35 | . . 35 . Shots 1 | . . 1 . Rammed 2 | . . 2 . Targets Rammed 6 | . . 6 . Kicked 3 | . . 3 . Crushed 1 | . . 1 . Highest Temperature 189 | . 68 189 . Average Temperature 41 | . 23 57 . Received Heat Transfer 435 | . 219 216 . Siege Activations . | . . . . Robots Corrupted . | . . . . Combat Hostiles . | . . . . Parts Fried 2 | . 2 . . Impact Corruptions . | . . . . Robots Melted . | . . . . Combat Hostiles . | . . . . Parts Melted 3 | . . 3 . Heat Transferred 400 | . 100 300 . Parts Sabotaged . | . . . . Parts Stolen . | . . . . Parts Stripped . | . . . . Power Chain Reactions 2 | . 1 1 . Alert | -11 -10 -10 -10 ------- Run | Yrd Mat Min Sub Peak Influence 197 | . 197 148 . Initial 76 | . . 76 . Average 92 | . 72 119 . Maximum Alert Level . | . . . . Low Security (%) 100 | 100 100 100 . Level 1 . | . . . . Level 2 . | . . . . Level 3 . | . . . . Level 4 . | . . . . Level 5 . | . . . . High Security . | . . . . Max Security . | . . . . Squads Dispatched 1 | . . 1 . Investigation 1 | . . 1 . Extermination . | . . . . Reinforcement . | . . . . Assault . | . . . . Garrison . | . . . . Intercept . | . . . . Searches Triggered . | . . . . Construction Impeded . | . . . . Haulers Reinforced . | . . . . Active Scanning Responses . | . . . . Cargo Convoy Interrupts . | . . . . Stealth | -11 -10 -10 -10 --------- Run | Yrd Mat Min Sub Distress Signals 1 | . 1 . . Communications Jammed . | . . . . Distress Signals . | . . . . Times Spotted 29 | . 18 10 1 Peak Tracking Total 7 | . 7 3 1 Tactical Retreats 5 | . 2 3 . Traps | -11 -10 -10 -10 ------- Run | Yrd Mat Min Sub Traps Triggered . | . . . . Indirectly . | . . . . Trap Hack Attempts . | . . . . Triggered . | . . . . Disarmed . | . . . . Reprogrammed . | . . . . Reused . | . . . . Traps Extracted . | . . . . Installed . | . . . . Triggered . | . . . . Machines | -11 -10 -10 -10 ---------- Run | Yrd Mat Min Sub Machines Disabled . | . . . . Max in Single Turn . | . . . . Machines Repaired . | . . . . Machines Dismantled . | . . . . Machines Sabotaged . | . . . . Overloaded Fab Kills . | . . . . Hacking | -11 -10 -10 -10 --------- Run | Yrd Mat Min Sub Machines Accessed 4 | . 2 2 . Terminals 3 | . 1 2 . Fabricators . | . . . . Repair Stations . | . . . . Recycling Units 1 | . 1 . . Scanalyzers . | . . . . Garrison Access . | . . . . Total Hacks 8 | . 3 5 . Successful 3 | . 2 1 . Failed 5 | . 1 4 . Catastrophic 1 | . 1 . . Database Lockouts . | . . . . Manual 4 | . 2 2 . Terminals 7 | . 2 5 . Fabricators . | . . . . Repair Stations . | . . . . Recycling Units 1 | . 1 . . Scanalyzers . | . . . . Garrison Access . | . . . . Terminal Hacks . | . . . . Fabricator Hacks . | . . . . Repair Station Hacks . | . . . . Recycling Unit Hacks 1 | . 1 . . Report Inventory 1 | . 1 . . Scanalyzer . | . . . . Garrison Access Hacks . | . . . . Unauthorized Hacks 2 | . 1 1 . Terminals 2 | . 1 1 . Operators 2 | . 1 1 . Fabricators . | . . . . Repair Stations . | . . . . Recycling Units . | . . . . Scanalyzers . | . . . . Garrison Access . | . . . . Data Cores Recovered . | . . . . Used . | . . . . Hacking Detections 3 | . 1 2 . Full Trace Events 2 | . 1 1 . Feedback Events . | . . . . Feedback Blocked . | . . . . Robot Schematics Acquired . | . . . . Robots Built . | . . . . Authchips . | . . . . Time . | . . . . Total Robot Build Rating . | . . . . Part Schematics Acquired . | . . . . Parts Built . | . . . . Authchips . | . . . . Time . | . . . . Total Part Build Rating . | . . . . Parts Repaired . | . . . . Time . | . . . . Parts Recycled . | . . . . Recycled Matter . | . . . . Retrieved Matter . | . . . . Retrieved Components . | . . . . Parts Scanalyzed . | . . . . Part Schematics Acquired . | . . . . Parts Damaged . | . . . . Bothacking | -11 -10 -10 -10 ------------ Run | Yrd Mat Min Sub Used RIF Installer . | . . . . Robots Hacked . | . . . . Non-combat . | . . . . Combat . | . . . . Robot Hacks Applied . | . . . . Relay Couplers Released . | . . . . Fabnet Peak Effective % . | . . . . Robots Rewired . | . . . . Allies Hacked . | . . . . Hacks Repelled . | . . . . Allies | -11 -10 -10 -10 -------- Run | Yrd Mat Min Sub Total Allies . | . . . . Largest Group . | . . . . Highest-Rated Group . | . . . . Highest-Rated Ally . | . . . . Total Orders . | . . . . Ally Attacks . | . . . . Total Damage . | . . . . Kills . | . . . . Allies Corrupted . | . . . . Allies Melted . | . . . . Intel | -11 -10 -10 -10 ------- Run | Yrd Mat Min Sub Robot Analysis Total . | . . . . Derelict Logs Recovered 3 | . . 2 1 Drone Launches . | . . . . Drone Recoveries . | . . . . Exploration | -11 -10 -10 -10 ------------- Run | Yrd Mat Min Sub Turns Passed 1779 | 65 746 785 183 Spaces Moved 849 | 40 363 349 97 Core 11 | 11 . . . Treads 589 | 29 351 209 . Legs 249 | . 12 140 97 Wheels . | . . . . Hover . | . . . . Flight . | . . . . Fastest Speed 50 | 50 120 160 190 Average Speed 166 | 129 158 172 190 Slowest Speed 240 | 160 160 240 190 Overloaded Moves . | . . . . Propulsion Burnouts . | . . . . Robots Hopped . | . . . . Cave-ins Triggered . | . . . . Exploration Rate (%) 29 | 5 52 49 12 Regions Visited 3 Branch Regions 2 Pre-discovered Areas 2 | . . 2 . Known Exits Taken . | . . . . Unknown Exits Taken 3 | 1 1 1 . Scrap Searched 1 | . . 1 . Spaces Dug . | . . . . Terrain Destroyed 9 | . 1 8 . Melee . | . . . . Projectile . | . . . . AOE 9 | . 1 8 . Terrain Rammed . | . . . . Walls Destroyed . | . . . . Machines Disabled . | . . . . Actions | -11 -10 -10 -10 --------- Run | Yrd Mat Min Sub Total 1092 | 53 459 483 97 Wait 110 | . 20 90 . Move 846 | 39 362 348 97 Hop . | . . . . Pick Up 27 | 8 13 6 . Fast Attach . | . . . . Attach 13 | 6 4 3 . Detach . | . . . . Swap 7 | . 6 1 . Drop 6 | . 4 2 . Fire 77 | . 50 27 . Melee . | . . . . Ram . | . . . . Kick 3 | . . 3 . Crush 3 | . . 3 . Escape Stasis . | . . . . Rewire . | . . . . Trap . | . . . . Miscellaneous . | . . . . Route ------- -11/Scrapyard -10/Materials -10/Mines (discovered 2 exits: *Mat / [*Sub]) -10/Subcaves History --------- Turn | Location | Event 39 | -11/Scrapyard | Discovered new exit (range 15) 66 | -11/Scrapyard | Entered Materials 299 | -10/Materials | Discovered new exit (range 9) 305 | -10/Materials | Build established: Mutant 812 | -10/Materials | Entered Mines 929 | -10/Mines | Core integrity fell below 50% 1168 | -10/Mines | Identified exit to Materials 1242 | -10/Mines | Received a Rocket Launcher from a helpful Derelict 1283 | -10/Mines | Lost 3 parts (1p1n1w) 1405 | -10/Mines | Learned location of Storage (-9) 1590 | -10/Mines | Discovered new exit (range 4) 1597 | -10/Mines | Entered Subcaves 1601 | -10/Subcaves | Learned Materials security intel 1773 | -10/Subcaves | Core integrity fell below 20% 1780 | -10/Subcaves | Destroyed by VF-8C6(R) with Subdweller Machine Gun Last Messages --------------- any of them following you? I'm here trying to lose some heat after our second raid on Storage failed. Whatever you do stay away from that place, they've tightened security following our previous successful raids." World map updated: -9/Storage. 01407_ 2V-7JH(g): "We scattered so the Unaware couldn't effectively use their advantage in numbers, and I suggest you do the same." 01407_ 2V-7JH(g) slips back into the shadows. 01527_ Kicked R-06 Scavenger out of the way. 01571_ Kicked T-07 Excavator. 01576_ Kicked K-01 Serf out of the way. 01590_ EXIT=FOUND LOCATION=UNKNOWN AMBIENT_HEAT=-10 GOAL=ESCAPE 01601_ Acquired derelict log, extracted data. Data stored: Materials security intel. 01759_ Sml. Laser destroyed. Map ----- +----------------------------------------------------+ | ???????### ## #????????????????????????? | | ???????# ### #????????????????????????? | | ???????## #??##????????????????????????? | | ????????# #????????????????????????????? | | ????????# ##????????????????????????????? | | ????????# #?????????????????????????????? | | ????????# ##????????????????????????????? | | ????????# ##???????????????????????????? | | ???????### ##??????????????????????????? | | ???????# #" #??????????????????????????? | | ???????# #??????????????????????????? | | ???????# #" ##??????????????????????????? | | ?????? ?## ##????????????####???????????? | | ??????#???## ##??????????### ##??????????? | | ???????????# #####?????????? #??????????? | | ??????????## ##????????????? ## ????????? | | ????# ### #????####????? ?????##?? | | ????# ###### ##???? ????? ##? | | ???# #???? ????? ## | | # ### #???? ????? | | ## ??# #??## ## ?????# # | | ?# ??# ## ##?## #?# ????? # | | ?# ???## ### ##?## #?# ???## # | | ? ????# ## #### #???? ##### " | | ?? ???# ### # # ###???# # # | | ?? ????# #?## @ ##??# #? | | ??? ????? ??### #??# #? | | ???## ?????# ????# ### ##?# # " " ## | | ?????????????# ????## ##?## ### ## # | | ????????????? ?????###??## R & | | ????????????? ?????????# " " # | | ????????????# ##??????????# ## " ## | | ????????????# #????????????# ##### ##? | | ????????????# #?????????????#### ##????##?? | | ???????????????????????????????######## #????????? | | ??????????????????????????????????????###????????? | | ?????????????????????????????????????????????????? | | ?????????????????????????????????????????????????? | | ?????????????????????????????????????????????????? | | ?????????????????????????????????????????????????? | | ?????????????????????????????????????????????????? | | ?????????????????????????????????????????????????? | | ?????????????????????????????????????????????????? | | ?????????????????????????????????????????????????? | | ?????????????????????????????????????????????????? | | ?????????????????????????????????????????????????? | | ?????????????????????????????????????????????????? | | ?????????????????????????????????????????????????? | | ?????????????????????????????????????????????????? | | ?????????????????????????????????????????????????? | +----------------------------------------------------+ Best States ------------- Heat Dissipation 25 Energy Generation 14 Energy Capacity 250 Matter Stores 300 Matter Capacity 300 Sight Range 16 Terrain Scan Density 10 Evasion (%) 55 Targeting Accuracy 5 Recoil Reduction 2 Item Schematics ----------------- None Robot Schematics ------------------ None Fabricated ------------ Nothing Alien Tech Used ----------------- None Achievements -------------- None Challenges ------------ None Game ------ Seed IntegratedDecoderAutobeam Manual? 0 Play Time 00:12:57 Cumulative 18.3 hours Start 2024.04.09 @ 20:06:13 End 2024.04.09 @ 20:18:38 Sessions 1 Manual Loads 0 Difficulty Rogue Special Mode None Game No. 33 Rogue 33 Adventurer 0 Explorer 0 Win Type - Total 0 Types 0/0/0/0/0/0/0/0/0 Lore% 19 Gallery% 17 Achievement% 17 Wizard Run 0 Options --------- Layout 1 ASCII 0 Keyboard 0 Movement Numpad Keybinds 0 Fullscreen 1 Font 24/Smallcaps Map View 50x35 Zoom Use 0% Tactical HUD 1 Map Filters NONE Filters NONE Steam 1 RUN: 4141e653-9564-47df-8259-86533bdd933c